fUSD/lending_fUSD_20251115
["ID","MTS","AMOUNT","RATE_DAILY","PERIOD"]
[394055148,1763234823808,-500.0,0.00041422,120]
[394055149,1763234823846,-500.0,0.00041422,120]
[394055150,1763234823884,-628.07272029,0.00041422,120]
[394055151,1763234823920,-559.89413919,0.00041422,120]
[394055152,1763234823955,-500.0,0.00041422,120]
[394055153,1763234823990,-500.0,0.00041422,120]
[394055154,1763234824024,-500.0,0.00041422,120]
[394055155,1763234824058,-500.0,0.00041422,120]
[394055156,1763234824093,-500.0,0.00041422,120]
[394055157,1763234824127,-500.0,0.00041422,120]
[394055158,1763234824162,-500.0,0.00041422,120]
[394055159,1763234824196,-289.52270449,0.00041422,120]
[394055160,1763234824232,-304.1080371,0.00041422,120]
[394055161,1763234824266,-500.0,0.00041422,120]
[394055162,1763234824302,-172.21213029,0.00041422,120]
[394055163,1763234824337,-500.0,0.00041422,120]
[394055164,1763234824375,-500.0,0.00041422,120]
[394055165,1763234824413,-500.0,0.00041422,120]
[394055166,1763234824449,-500.0,0.00041422,120]
[394055167,1763234824484,-500.0,0.00041422,120]
[394055168,1763234824519,-500.0,0.00041422,120]
[394055169,1763234824554,-399.96823469,0.00041422,120]
[394055170,1763234824587,-500.0,0.00041422,120]
[394055171,1763234824621,-500.0,0.00041422,120]
[394055172,1763234824657,-457.21312657,0.00041422,120]
[394055173,1763234824692,-500.0,0.00041422,120]
[394055174,1763234824727,-500.0,0.00041422,120]
[394055175,1763234824765,-500.0,0.00041422,120]
[394055176,1763234824801,-418.67726687,0.00041422,120]
[394055177,1763234824837,-203.06198992,0.00041422,120]
[394055178,1763234824874,-500.0,0.00041422,120]
[394055179,1763234824911,-401.06255411,0.00041422,120]
[394055180,1763234824948,-500.0,0.00041422,120]
[394055181,1763234824985,-211.94914251,0.00041422,120]
[394055182,1763234825019,-402.216819,0.00041422,120]
[394055183,1763234825055,-500.0,0.00041422,120]
[394055184,1763234825089,-500.0,0.00041422,120]
[394055185,1763234825123,-500.0,0.00041422,120]
[394055186,1763234825155,-403.64913899,0.00041422,120]
[394055187,1763234825191,-500.0,0.00041422,120]
[394055188,1763234825353,-521.31864313,0.00041422,120]
[394055189,1763234825394,-500.0,0.00041422,120]
[394055190,1763234825435,-500.0,0.00041422,120]
[394055191,1763234825477,-500.0,0.00041422,120]
[394055192,1763234825515,-500.0,0.00041422,120]
[394055193,1763234825554,-500.0,0.00041422,120]
[394055194,1763234825592,-555.53183758,0.00041422,120]
[394055195,1763234825629,-405.74810931,0.00041422,120]
[394055196,1763234825667,-216.0,0.00041422,30]
[394055197,1763234825705,-500.0,0.00041422,120]
[394055198,1763234825742,-500.0,0.00041422,120]
[394055199,1763234825782,-500.0,0.00041422,120]
[394055200,1763234825819,-500.0,0.00041422,120]
[394055201,1763234825857,-500.0,0.00041422,120]
[394055202,1763234825894,-500.0,0.00041422,120]
[394055203,1763234825931,-500.0,0.00041422,120]
[394055204,1763234825969,-500.0,0.00041422,120]
[394055205,1763234826008,-519.64814025,0.00041422,120]
[394055206,1763234826044,-340.36823628,0.00041422,120]
[394055207,1763234826081,-251.7815298,0.00041422,120]
[394055208,1763234826114,-401.13405478,0.00041422,120]
[394055209,1763234826149,-500.0,0.00041422,120]
[394055210,1763234826184,-500.0,0.00041422,120]
[394055211,1763234826224,-500.0,0.00041422,120]
[394055212,1763234826267,-500.0,0.00041422,120]
[394055213,1763234826308,-500.0,0.00041422,120]
[394055214,1763234826349,-500.0,0.00041422,120]
[394055215,1763234826386,-401.05219904,0.00041422,120]
[394055216,1763234826422,-500.0,0.00041422,120]
[394055217,1763234826459,-250.10347306,0.00041422,120]
[394055218,1763234826496,-500.0,0.00041422,120]
[394055219,1763234826533,-405.6298198,0.00041422,120]
[394055220,1763234826570,-500.0,0.00041422,120]
[394055221,1763234826608,-500.0,0.00041422,120]
[394055222,1763234826648,-359.19017908,0.00041422,120]
[394055223,1763234826685,-402.92129721,0.00041422,120]
[394055224,1763234826723,-500.0,0.00041422,120]
[394055225,1763234826764,-500.0,0.00041422,120]
[394055226,1763234826802,-500.0,0.00041422,120]
[394055227,1763234826839,-500.0,0.00041422,120]
[394055228,1763234826878,-500.0,0.00041422,120]
[394055229,1763234826916,-400.0,0.00041422,120]
[394055230,1763234826954,-500.0,0.00041422,120]
[394055231,1763234826991,-500.0,0.00041422,120]
[394055232,1763234827029,-500.0,0.00041422,120]
[394055233,1763234827067,-487.07692399,0.00041422,120]
[394055234,1763234827102,-500.0,0.00041422,120]
[394055235,1763234827139,-500.0,0.00041422,120]
[394055236,1763234827173,-500.0,0.00041422,120]
[394055237,1763234827208,-500.0,0.00041422,120]
[394055238,1763234827243,-417.18986247,0.00041422,120]
[394055239,1763234827281,-515.4753834,0.00041422,120]
[394055240,1763234827318,-447.01755199,0.00041422,120]
[394055241,1763234827356,-984.61,0.00041422,120]
[394055242,1763234827394,-984.61,0.00041422,120]
[394055243,1763234827433,-984.61,0.00041422,120]
[394055244,1763234827471,-984.61,0.00041422,120]
[394055245,1763234827510,-984.61,0.00041422,120]
[394055246,1763234827548,-984.61,0.00041422,120]
[394055247,1763234827585,-984.61,0.00041422,120]
[394055248,1763234827624,-984.61,0.00041422,120]
[394055249,1763234827666,-984.61,0.00041422,120]
[394055250,1763234827704,-583.25207244,0.00041422,120]
[394055251,1763234827859,-984.61,0.00041422,120]
[394055252,1763234827900,-500.0,0.00041422,120]
[394055253,1763234827941,-984.61,0.00041422,120]
[394055254,1763234827979,-500.0,0.00041422,120]
[394055255,1763234828017,-984.61,0.00041422,120]
[394055256,1763234828053,-500.0,0.00041422,120]
[394055257,1763234828094,-984.61,0.00041422,120]
[394055258,1763234828130,-500.0,0.00041422,120]
[394055259,1763234828170,-984.61,0.00041422,120]
[394055260,1763234828207,-500.0,0.00041422,120]
[394055261,1763234828246,-984.61,0.00041422,120]
[394055262,1763234828284,-186.97455068,0.00041422,120]
[394055263,1763234828324,-984.61,0.00041422,120]
[394055264,1763234828371,-984.61,0.00041422,120]
[394055265,1763234828413,-500.0,0.00041422,120]
[394055266,1763234828454,-984.61,0.00041422,120]
[394055267,1763234828494,-500.0,0.00041422,120]
[394055268,1763234828534,-984.61,0.00041422,120]
[394055269,1763234828573,-500.0,0.00041422,120]
[394055270,1763234828613,-984.61,0.00041422,120]
[394055271,1763234828650,-500.0,0.00041422,120]
[394055272,1763234828692,-984.61,0.00041422,120]
[394055273,1763234828731,-427.02887484,0.00041422,120]
[394055274,1763234828774,-984.61,0.00041422,120]
[394055275,1763234828815,-503.66607646,0.00041422,120]
[394055276,1763234828857,-984.61,0.00041422,120]
[394055277,1763234828898,-984.67981835,0.00041422,120]
[394055278,1763234828938,-495.43484402,0.00041422,120]
[394055279,1763234828978,-516.23107996,0.00041422,120]
[394055280,1763234829026,-500.0,0.00041422,120]
[394055281,1763234829084,-500.0,0.00041422,120]
[394055282,1763234829123,-500.0,0.00041422,120]
[394055283,1763234829163,-500.0,0.00041422,120]
[394055284,1763234829203,-415.39200855,0.00041422,120]
[394055285,1763234829243,-508.40672437,0.00041422,120]
[394055286,1763234829281,-508.08961102,0.00041422,120]
[394055287,1763234829319,-500.0,0.00041422,120]
[394055288,1763234829357,-500.0,0.00041422,120]
[394055289,1763234829399,-500.0,0.00041422,120]
[394055290,1763234829439,-500.0,0.00041422,120]
[394055291,1763234829476,-500.0,0.00041422,120]
[394055292,1763234829514,-1849.177654,0.00041422,120]
[394055293,1763234829551,-435.17176892,0.00041422,120]
[394055294,1763234829586,-1849.177654,0.00041422,120]
[394055295,1763234829624,-1961.576453,0.00041422,120]
[394055296,1763234829667,-194.165717,0.00041422,120]
[394055297,1763234829708,-1849.177654,0.00041422,120]
[394055298,1763234829748,-500.0,0.00041422,120]
[394055299,1763234829790,-1961.576453,0.00041422,120]
[394055300,1763234829830,-194.165717,0.00041422,120]
[394055301,1763234829872,-1849.177654,0.00041422,120]
[394055302,1763234829911,-334.99237964,0.00041422,120]
[394055303,1763234829950,-1961.576453,0.00041422,120]
[394055304,1763234829990,-500.0,0.00041422,120]
[394055305,1763234830027,-194.165717,0.00041422,120]
[394055306,1763234830071,-1849.177654,0.00041422,120]
[394055307,1763234830110,-333.50244774,0.00041422,120]
[394055308,1763234830148,-1961.576453,0.00041422,120]
[394055309,1763234830186,-1849.177654,0.00041422,120]
[394055310,1763234830223,-500.0,0.00041422,120]
[394055311,1763234830261,-1961.576453,0.00041422,120]
[394055312,1763234830411,-1961.576453,0.00041422,120]
[394055313,1763234830450,-500.0,0.00041422,120]
[394055314,1763234830487,-500.0,0.00041422,120]
[394055315,1763234830524,-500.0,0.00041422,120]
[394055316,1763234830559,-403.08195383,0.00041422,120]
[394055317,1763234830595,-504.48772579,0.00041422,120]
[394055318,1763234830631,-547.87157091,0.00041422,120]
[394055319,1763234830668,-626.45485492,0.00041422,120]
[394055320,1763234830706,-401.32754888,0.00041422,120]
[394055321,1763234830742,-505.48741348,0.00041422,120]
[394055322,1763234830780,-401.1581853,0.00041422,120]
[394055323,1763234830818,-500.0,0.00041422,120]
[394055324,1763234830856,-165.53973773,0.00041422,120]
[394055325,1763234830893,-1664.389209,0.00041422,120]
[394055326,1763234830930,-1664.389209,0.00041422,120]
[394055327,1763234830966,-1664.389209,0.00041422,120]
[394055328,1763234831002,-500.0,0.00041422,120]
[394055329,1763234831037,-1664.389209,0.00041422,120]
[394055330,1763234831073,-500.0,0.00041422,120]
[394055331,1763234831108,-1664.389209,0.00041422,120]
[394055332,1763234831145,-599.90541959,0.00041422,120]
[394055333,1763234831181,-1664.389209,0.00041422,120]
[394055334,1763234831218,-500.0,0.00041422,120]
[394055335,1763234831254,-500.0,0.00041422,120]
[394055336,1763234831288,-500.0,0.00041422,120]
[394055337,1763234831325,-162.5875232,0.00041422,120]
[394055338,1763234831359,-401.15951778,0.00041422,120]
[394055339,1763234831395,-3024.938539,0.00041422,120]
[394055340,1763234831430,-500.0,0.00041422,120]
[394055341,1763234831466,-500.0,0.00041422,120]
[394055342,1763234831500,-500.0,0.00041422,120]
[394055343,1763234831535,-500.0,0.00041422,120]
[394055344,1763234831571,-403.72113485,0.00041422,120]
[394055345,1763234831608,-3024.938539,0.00041422,120]
[394055346,1763234831645,-500.0,0.00041422,120]
[394055347,1763234831682,-500.0,0.00041422,120]
[394055348,1763234831718,-500.0,0.00041422,120]
[394055349,1763234831756,-500.0,0.00041422,120]
[394055350,1763234831800,-3024.938539,0.00041422,120]
[394055351,1763234831840,-207.3441947,0.00041422,120]
[394055352,1763234831878,-500.0,0.00041422,120]
[394055353,1763234831917,-500.0,0.00041422,120]
[394055354,1763234831955,-3024.938539,0.00041422,120]
[394055355,1763234831991,-411.29614135,0.00041422,120]
[394055356,1763234832027,-512.97883809,0.00041422,120]
[394055357,1763234832063,-3024.938539,0.00041422,120]
[394055358,1763234832098,-3024.938539,0.00041422,120]
[394055359,1763234832133,-500.0,0.00041422,120]
[394055360,1763234832168,-401.90214766,0.00041422,120]
[394055361,1763234832203,-336.18826855,0.00041422,120]
[394055362,1763234832238,-605.51488184,0.00041422,120]
[394055363,1763234832271,-404.49031214,0.00041422,120]
[394055364,1763234832305,-500.0,0.00041422,120]
[394055365,1763234832339,-249.47795489,0.00041422,120]
[394055366,1763234832372,-549.58738784,0.00041422,120]
[394055367,1763234832408,-500.0,0.00041422,120]
[394055368,1763234832444,-500.0,0.00041422,120]
[394055369,1763234832478,-412.98200253,0.00041422,120]
[394055370,1763234832512,-401.41520404,0.00041422,120]
[394055371,1763234832662,-500.0,0.00041422,120]
[394055372,1763234832701,-500.0,0.00041422,120]
[394055373,1763234832742,-500.0,0.00041422,120]
[394055374,1763234832780,-303.39886961,0.00041422,120]
[394055375,1763234832817,-500.0,0.00041422,120]
[394055376,1763234832854,-512.82809109,0.00041422,120]
[394055377,1763234832892,-487.24668259,0.00041422,120]
[394055378,1763234832930,-500.0,0.00041422,120]
[394055379,1763234832967,-500.0,0.00041422,120]
[394055380,1763234833003,-500.0,0.00041422,120]
[394055381,1763234833040,-266.55791401,0.00041422,120]
[394055382,1763234833075,-500.0,0.00041422,120]
[394055383,1763234833143,-500.0,0.00041422,120]
[394055384,1763234833181,-500.0,0.00041422,120]
[394055385,1763234833222,-500.0,0.00041422,120]
[394055386,1763234833262,-500.0,0.00041422,120]
[394055387,1763234833299,-500.0,0.00041422,120]
[394055388,1763234833335,-449.71281967,0.00041422,120]
[394055389,1763234833370,-500.0,0.00041422,120]
[394055390,1763234833407,-646.29757839,0.00041422,120]
[394055391,1763234833444,-500.0,0.00041422,120]
[394055392,1763234833480,-500.0,0.00041422,120]
[394055393,1763234833516,-500.0,0.00041422,120]
[394055394,1763234833550,-500.0,0.00041422,120]
[394055395,1763234833585,-500.0,0.00041422,120]
[394055396,1763234833621,-500.0,0.00041422,120]
[394055398,1763234833658,-415.12167709,0.00041422,120]
[394055399,1763234833697,-475.62871887,0.00041422,120]
[394055400,1763234833735,-500.0,0.00041422,120]
[394055401,1763234833774,-500.0,0.00041422,120]
[394055402,1763234833814,-500.0,0.00041422,120]
[394055403,1763234833852,-500.0,0.00041422,120]
[394055404,1763234833893,-526.75221092,0.00041422,120]
[394055405,1763234833930,-500.0,0.00041422,120]
[394055406,1763234833969,-500.0,0.00041422,120]
[394055407,1763234834008,-460.0,0.00041422,120]
[394055408,1763234834047,-417.65255001,0.00041422,120]
[394055409,1763234834086,-413.60314133,0.00041422,120]
[394055410,1763234834125,-500.0,0.00041422,120]
[394055411,1763234834163,-500.0,0.00041422,120]
[394055412,1763234834199,-500.0,0.00041422,120]
[394055413,1763234834235,-500.0,0.00041422,120]
[394055414,1763234834271,-500.0,0.00041422,120]
[394055415,1763234834309,-264.78764089,0.00041422,120]
[394055416,1763234834349,-500.0,0.00041422,120]
[394055417,1763234834388,-500.0,0.00041422,120]
[394055418,1763234834426,-500.0,0.00041422,120]
[394055419,1763234834463,-500.0,0.00041422,120]
[394055420,1763234834498,-500.0,0.00041422,120]
[394055421,1763234834533,-206.28185644,0.00041422,120]
[394055422,1763234834569,-500.0,0.00041422,120]
[394055423,1763234834604,-500.0,0.00041422,120]
[394055424,1763234834640,-500.0,0.00041422,120]
[394055425,1763234834678,-500.0,0.00041422,120]
[394055426,1763234834713,-190.75539593,0.00041422,120]
[394055427,1763234834750,-339.50235691,0.00041422,120]
[394055428,1763234834889,-500.0,0.00041422,120]
[394055429,1763234834932,-500.0,0.00041422,120]
[394055430,1763234834972,-500.0,0.00041422,120]
[394055431,1763234835011,-562.49474913,0.00041422,120]
[394055432,1763234835047,-500.0,0.00041422,120]
[394055433,1763234835086,-500.0,0.00041422,120]
[394055434,1763234835123,-310.6881064,0.00041422,120]
[394055435,1763234835161,-611.13506993,0.00041422,120]
[394055436,1763234835198,-500.0,0.00041422,120]
[394055437,1763234835234,-500.0,0.00041422,120]
[394055438,1763234835268,-500.0,0.00041422,120]
[394055439,1763234835304,-500.0,0.00041422,120]
[394055440,1763234835339,-500.0,0.00041422,120]
[394055441,1763234835374,-500.0,0.00041422,120]
[394055442,1763234835410,-500.0,0.00041422,120]
[394055443,1763234835447,-260.07095671,0.00041422,120]
[394055444,1763234835484,-442.24093276,0.00041422,120]
[394055445,1763234835520,-500.0,0.00041422,120]
[394055446,1763234835555,-500.0,0.00041422,120]
[394055447,1763234835591,-500.0,0.00041422,120]
[394055448,1763234835628,-500.0,0.00041422,120]
[394055449,1763234835668,-637.82857425,0.00041422,120]
[394055450,1763234835708,-500.0,0.00041422,120]
[394055451,1763234835746,-500.0,0.00041422,120]
[394055452,1763234835784,-500.0,0.00041422,120]
[394055453,1763234835823,-624.57506897,0.00041422,120]
[394055454,1763234835861,-500.0,0.00041422,120]
[394055455,1763234835899,-500.0,0.00041422,120]
[394055456,1763234835937,-500.0,0.00041422,120]
[394055457,1763234835982,-500.0,0.00041422,120]
[394055458,1763234836021,-545.44094832,0.00041422,120]
[394055459,1763234836057,-500.0,0.00041422,120]
[394055460,1763234836095,-500.0,0.00041422,120]
[394055461,1763234836133,-353.10300247,0.00041422,60]
[394055462,1763234836171,-500.0,0.00041422,120]
[394055463,1763234836212,-500.0,0.00041422,120]
[394055464,1763234836250,-500.0,0.00041422,120]
[394055465,1763234836292,-508.65199143,0.00041422,120]
[394055466,1763234836329,-500.0,0.00041422,120]
[394055467,1763234836367,-500.0,0.00041422,120]
[394055468,1763234836403,-500.0,0.00041422,120]
[394055469,1763234836441,-426.36205052,0.00041422,120]
[394055470,1763234836479,-500.0,0.00041422,120]
[394055471,1763234836517,-500.0,0.00041422,120]
[394055472,1763234836554,-500.0,0.00041422,120]
[394055473,1763234836594,-500.0,0.00041422,120]
[394055474,1763234836638,-500.0,0.00041422,120]
[394055475,1763234836679,-500.0,0.00041422,120]
[394055476,1763234836722,-500.0,0.00041422,120]
[394055477,1763234836764,-202.66493432,0.00041422,120]
[394055478,1763234836805,-250.08158235,0.00041422,120]
[394055479,1763234836845,-500.0,0.00041422,120]
[394055480,1763234836886,-412.42904242,0.00041422,120]
[394055482,1763234836927,-185.24271207,0.00041422,120]
[394055483,1763234836969,-500.0,0.00041422,120]
[394055484,1763234837139,-403.96417757,0.00041422,120]
[394055485,1763234837180,-500.0,0.00041422,120]
[394055486,1763234837219,-500.0,0.00041422,120]
[394055487,1763234837257,-500.0,0.00041422,120]
[394055488,1763234837295,-500.0,0.00041422,120]
[394055489,1763234837334,-409.87157168,0.00041422,120]
[394055490,1763234837372,-500.0,0.00041422,120]
[394055491,1763234837414,-501.87674997,0.00041422,120]
[394055492,1763234837453,-529.92612032,0.00041422,120]
[394055493,1763234837496,-500.0,0.00041422,120]
[394055494,1763234837534,-269.4695653,0.00041422,120]
[394055495,1763234837572,-500.0,0.00041422,120]
[394055496,1763234837612,-505.29930515,0.00041422,120]
[394055497,1763234837653,-500.0,0.00041422,120]
[394055498,1763234837692,-500.0,0.00041422,120]
[394055499,1763234837732,-500.0,0.00041422,120]
[394055500,1763234837772,-270.02457686,0.00041422,120]
[394055501,1763234837812,-500.0,0.00041422,120]
[394055502,1763234837852,-500.0,0.00041422,120]
[394055503,1763234837889,-500.0,0.00041422,120]
[394055504,1763234837927,-505.21,0.00041422,120]
[394055505,1763234837963,-505.21,0.00041422,120]
[394055506,1763234837999,-505.21,0.00041422,120]
[394055507,1763234838036,-638.37222973,0.00041422,120]
[394055508,1763234838072,-505.21,0.00041422,120]
[394055509,1763234838112,-505.21,0.00041422,120]
[394055510,1763234838146,-505.21,0.00041422,120]
[394055511,1763234838197,-505.21,0.00041422,120]
[394055512,1763234838261,-505.21,0.00041422,120]
[394055513,1763234838324,-505.21,0.00041422,120]
[394055514,1763234838390,-505.21,0.00041422,120]
[394055515,1763234838454,-505.21,0.00041422,120]
[394055516,1763234838510,-505.21,0.00041422,120]
[394055517,1763234838566,-505.21,0.00041422,120]
[394055518,1763234838622,-505.21,0.00041422,120]
[394055519,1763234838681,-505.21,0.00041422,120]
[394055520,1763234838742,-500.0,0.00041422,120]
[394055521,1763234838804,-505.21,0.00041422,120]
[394055522,1763234838859,-500.0,0.00041422,120]
[394055523,1763234838916,-505.21,0.00041422,120]
[394055524,1763234838973,-500.0,0.00041422,120]
[394055525,1763234839029,-505.21,0.00041422,120]
[394055526,1763234839083,-500.0,0.00041422,120]
[394055527,1763234839138,-505.21,0.00041422,120]
[394055528,1763234839191,-406.31984167,0.00041422,120]
[394055529,1763234839248,-505.21,0.00041422,120]
[394055530,1763234839303,-505.21,0.00041422,120]
[394055531,1763234839358,-505.21,0.00041422,120]
[394055532,1763234839412,-505.21,0.00041422,120]
[394055533,1763234839466,-505.21,0.00041422,120]
[394055534,1763234839519,-359.00631992,0.00041422,120]
[394055535,1763234839571,-500.0,0.00041422,120]
[394055536,1763234839624,-500.0,0.00041422,120]
[394055537,1763234839833,-209.01018704,0.00041422,120]
[394055538,1763234839874,-500.0,0.00041422,120]
[394055539,1763234839912,-380.81615115,0.00041422,120]
[394055540,1763234839949,-500.0,0.00041422,120]
[394055541,1763234839987,-500.0,0.00041422,120]
[394055542,1763234840025,-645.06264156,0.00041422,120]
[394055543,1763234840061,-500.0,0.00041422,120]
[394055544,1763234840095,-500.0,0.00041422,120]
[394055545,1763234840130,-500.0,0.00041422,120]
[394055546,1763234840164,-156.94263631,0.00041422,120]
[394055547,1763234840199,-500.0,0.00041422,120]
[394055548,1763234840233,-500.0,0.00041422,120]
[394055549,1763234840268,-527.09537418,0.00041422,120]
[394055550,1763234840304,-500.0,0.00041422,120]
[394055551,1763234840341,-500.0,0.00041422,120]
[394055552,1763234840377,-500.0,0.00041422,120]
[394055553,1763234840414,-577.11246774,0.00041422,120]
[394055554,1763234840449,-348.53254673,0.00041422,120]
[394055555,1763234840484,-500.0,0.00041422,120]
[394055556,1763234840521,-500.0,0.00041422,120]
[394055557,1763234840556,-297.51122605,0.00041422,120]
[394055558,1763234840591,-500.0,0.00041422,120]
[394055559,1763234840626,-512.36059163,0.00041422,120]
[394055560,1763234840664,-302.52212553,0.00041422,120]
[394055561,1763234840702,-500.0,0.00041422,120]
[394055562,1763234840741,-214.53540482,0.00041422,120]
[394055563,1763234840781,-406.33097035,0.00041422,120]
[394055564,1763234840822,-474.88874127,0.00041422,120]
[394055565,1763234840861,-500.0,0.00041422,120]
[394055566,1763234840903,-500.0,0.00041422,120]
[394055567,1763234840943,-500.0,0.00041422,120]
[394055568,1763234840983,-500.0,0.00041422,120]
[394055569,1763234841022,-348.21010411,0.00041422,120]
[394055570,1763234841061,-500.0,0.00041422,120]
[394055571,1763234841099,-500.0,0.00041422,120]
[394055572,1763234841136,-500.0,0.00041422,120]
[394055573,1763234841173,-500.0,0.00041422,120]
[394055574,1763234841210,-421.11467972,0.00041422,120]
[394055575,1763234841246,-161.456092,0.00041422,120]
[394055576,1763234841281,-198.25213801,0.00041422,120]
[394055577,1763234841317,-490.14487885,0.00041422,120]
[394055578,1763234841354,-500.0,0.00041422,120]
[394055579,1763234841391,-500.0,0.00041422,120]
[394055580,1763234841429,-484.1366793,0.00041422,120]
[394055581,1763234841465,-500.0,0.00041422,120]
[394055582,1763234841502,-500.0,0.00041422,120]
[394055583,1763234841537,-500.0,0.00041422,120]
[394055584,1763234841576,-500.0,0.00041422,120]
[394055585,1763234841614,-168.0074676,0.00041422,120]
[394055586,1763234841651,-500.0,0.00041422,120]
[394055587,1763234841688,-500.0,0.00041422,120]
[394055588,1763234841726,-500.0,0.00041422,120]
[394055589,1763234841767,-500.0,0.00041422,120]
[394055590,1763234841808,-500.0,0.00041422,120]
[394055591,1763234841846,-446.18823637,0.00041422,120]
[394055592,1763234841884,-451.3860998,0.00041422,120]
[394055593,1763234841922,-217.10638186,0.00041422,120]
[394055594,1763234841961,-500.0,0.00041422,120]
[394055595,1763234842105,-500.0,0.00041422,120]
[394055596,1763234842144,-500.0,0.00041422,120]
[394055597,1763234842185,-457.31759191,0.00041422,120]
[394055598,1763234842224,-207.15569643,0.00041422,120]
[394055599,1763234842264,-500.0,0.00041422,120]
[394055600,1763234842302,-500.0,0.00041422,120]
[394055601,1763234842341,-500.0,0.00041422,120]
[394055602,1763234842381,-500.0,0.00041422,120]
[394055603,1763234842425,-500.0,0.00041422,120]
[394055604,1763234842465,-587.73231581,0.00041422,120]
[394055605,1763234842505,-169.56824417,0.00041422,120]
[394055606,1763234842544,-500.0,0.00041422,120]
[394055607,1763234842581,-500.0,0.00041422,120]
[394055608,1763234842617,-500.0,0.00041422,120]
[394055609,1763234842656,-500.0,0.00041422,120]
[394055610,1763234842695,-500.0,0.00041422,120]
[394055611,1763234842734,-500.0,0.00041422,120]
[394055612,1763234842777,-500.0,0.00041422,120]
[394055613,1763234842818,-211.62170642,0.00041422,120]
[394055614,1763234842859,-490.80681316,0.00041422,120]
[394055615,1763234842898,-211.24178569,0.00041422,120]
[394055616,1763234842938,-500.0,0.00041422,120]
[394055617,1763234842979,-500.0,0.00041422,120]
[394055618,1763234843019,-611.94746458,0.00041422,120]
[394055619,1763234843057,-500.0,0.00041422,120]
[394055620,1763234843097,-500.0,0.00041422,120]
[394055621,1763234843135,-500.0,0.00041422,120]
[394055622,1763234843172,-500.0,0.00041422,120]
[394055623,1763234843209,-616.10635657,0.00041422,120]
[394055624,1763234843246,-500.0,0.00041422,120]
[394055625,1763234843282,-500.0,0.00041422,120]
[394055626,1763234843318,-359.26664963,0.00041422,120]
[394055627,1763234843352,-500.0,0.00041422,120]
[394055628,1763234843389,-500.0,0.00041422,120]
[394055629,1763234843426,-500.0,0.00041422,120]
[394055630,1763234843465,-500.0,0.00041422,120]
[394055631,1763234843505,-500.0,0.00041422,120]
[394055632,1763234843554,-500.0,0.00041422,120]
[394055633,1763234843592,-500.0,0.00041422,120]
[394055634,1763234843631,-475.08701029,0.00041422,120]
[394055635,1763234843672,-302.30353624,0.00041422,120]
[394055636,1763234843713,-500.0,0.00041422,120]
[394055637,1763234843752,-500.0,0.00041422,120]
[394055638,1763234843796,-611.18331618,0.00041422,120]
[394055639,1763234843838,-500.0,0.00041422,120]
[394055640,1763234843880,-500.0,0.00041422,120]
[394055641,1763234843919,-500.0,0.00041422,120]
[394055642,1763234843958,-607.02894234,0.00041422,120]
[394055643,1763234843998,-500.0,0.00041422,120]
[394055644,1763234844043,-500.0,0.00041422,120]
[394055645,1763234844086,-207.83836193,0.00041422,120]
[394055646,1763234844135,-500.0,0.00041422,120]
[394055647,1763234844177,-500.0,0.00041422,120]
[394055648,1763234844216,-500.0,0.00041422,120]
[394055649,1763234844255,-500.0,0.00041422,120]